Cogmind - Beta 15 *** ADVENTURER MODE // 2025.10.05 @ 10:39:36 Player: Ragenugget Result: Smashed by cave-in Performance ------------- Evolutions (0) 0 Regions Visited (3) 600 Robots Destroyed (12) 60 Value Destroyed (285) 285 Prototype IDs (11) 220 Alien Tech Used (0) 0 Bonus (67) 67 TOTAL SCORE: 1232 Bonus ------- Follower Combat Kills 67 Cogmind --------- Core Integrity 0/250 Matter 235/300 Energy 99/100 System Corruption 10% Temperature Cool (0) Movement Core (50) Location -10/Subcaves Parts ------- > --- POWER (1) -------- (None) > --- PROPULSION (2) --- (None) > --- UTILITY (2) ------ (None) > --- WEAPON (2) ------- (None) > --- INVENTORY (5) ---- Subdweller Optics Subdweller Laser Scrap Shield Fragment (49) Scrap Shield Fragment (47) Peak State ------------ > --- POWER ------------ Subdweller Power Source > --- PROPULSION ------- Subdweller Monowheel Subdweller Monowheel > --- UTILITY ---------- Scrap Shield > --- WEAPON ----------- Subdweller Laser Subdweller Machine Gun > --- INVENTORY -------- Light Ion Engine Wheel Wheel Subdweller Optics Scrap Shield Fragment [Rating: 14] Favorites ----------- Power Light Ion Engine Engine Light Ion Engine Propulsion Wheel Wheel Wheel Utility Scrap Shield Storage High-capacity Storage Unit Protection Scrap Shield Weapon Subdweller Machine Gun Energy Gun Subdweller Laser Ballistic Gun Subdweller Machine Gun Launcher Subdweller Shrapnel Launcher Special Weapon Mining Laser Build | -11 -10 -10 -10 ------- Run | Yrd Mat Min Sub Slots Evolved . | . . . . Power . | . . . . Propulsion . | . . . . Utility . | . . . . Weapon . | . . . . Parts Attached 20 | 5 2 2 11 Power 4 | 1 . . 3 Engine 4 | 1 . . 3 Core . | . . . . Reactor . | . . . . Propulsion 5 | 2 . . 3 Treads . | . . . . Leg . | . . . . Wheel 5 | 2 . . 3 Hover . | . . . . Flight . | . . . . Utility 5 | . 2 2 1 Device . | . . . . Storage 1 | . . 1 . Processor . | . . . . Hackware . | . . . . Protection 4 | . 2 1 1 Artifact . | . . . . Weapon 6 | 2 . . 4 Energy Gun 2 | 1 . . 1 Energy Cannon . | . . . . Ballistic Gun 2 | 1 . . 1 Ballistic Cannon . | . . . . Launcher 1 | . . . 1 Special Weapon 1 | . . . 1 Impact Weapon . | . . . . Slashing Weapon . | . . . . Piercing Weapon . | . . . . Special Melee Weapon . | . . . . Unidentified Prototypes . | . . . . Parts Lost 5 | . . . 5 Power 1 | . . . 1 Propulsion 2 | . . . 2 Utility 1 | . . . 1 Weapon 1 | . . . 1 Highest Loss Streak 5 | . . . 5 To Critical Strikes . | . . . . Average Backups 1 | . 1 1 1 Power . | . 1 1 . Propulsion . | . . . . Utility . | . . . . Weapon . | . . . . Tool/Special . | . . . . Unused Backups 1 | . . . 1 Power . | . . . . Propulsion . | . . . . Utility 1 | . . . 1 Weapon . | . . . . Tool/Special . | . . . . Average Slot Usage (%) 70 | . 73 98 69 Engine 13 | . 14 14 13 Wheel 13 | . 28 28 12 Protection 14 | . 2 26 14 Energy Gun 10 | . 14 14 10 Ballistic Gun 13 | . 14 14 13 Special Weapon 2 | . . . 3 Peak Build Rating 14 | 5 7 7 14 Average Rating 10 | 3 5 6 10 On Entrance 4 | . 5 6 7 Naked Turns 2 | . . . 2 Heaviest Build 47 | 6 7 47 33 Greatest Support 40 | 20 20 20 40 Greatest Overweight (x) 10 | . . 2 10 Average Overweight (x) 1 | . . . 2 Largest Inventory Capacity 20 | 5 5 20 5 Average Capacity 5 | 5 5 6 5 Most Carried 5 | 2 2 2 5 Average Carried 3 | . 1 1 3 Final Capacity 5 | 5 5 5 5 Final Carried 4 | 1 1 1 4 Class Distribution -------------------- 89% | Subdweller-Mutant 10% | Mutant Dominant Class ---------------- Mutant | -10/Materials Mutant | -10/Mines Subdweller-Mutant | -10/Subcaves Resources | -11 -10 -10 -10 ----------- Run | Yrd Mat Min Sub Matter Collected 673 | 265 15 43 350 Remotely . | . . . . Salvage Created 396 | 50 50 97 199 Parts 17 | 2 4 2 9 Haulers Intercepted . | . . . . Recyclers Shooed . | . . . . Parts Field Recycled . | . . . . Retrieved Matter . | . . . . Parts Self-Destructed 6 | . . . 6 Prevented . | . . . . Kills | -11 -10 -10 -10 ------- Run | Yrd Mat Min Sub Combat Hostiles Destroyed 11 | 1 3 . 7 Guns 9 | 1 3 . 5 AOE 2 | . . . 2 Classes Destroyed 4 | 2 1 . 1 Worker 1 | 1 . . . Swarmer 5 | . 3 . 2 Grunt 1 | 1 . . . Subdweller 5 | . . . 5 Best Kill Streak 3 | 1 3 . 2 Combat Bots Only 3 | 1 3 . 2 Max Kills in Single Turn 2 | 1 2 . 1 Gunslinging 1 | . 1 . . Exploded 1 | . . . 1 Melee . | . . . . Uniques/NPCs Destroyed . | . . . . Combat | -11 -10 -10 -10 -------- Run | Yrd Mat Min Sub Hostile Shots Fired 53 | 5 8 . 40 Missed 22 | 2 4 . 16 Hits 31 | 3 4 . 24 Projectile 31 | 3 4 . 24 Critical Strikes 1 | . . . 1 Damage Taken 1130 | 24 22 . 1084 Core 266 | . 6 . 260 Absorbed by Shields . | . . . . Ignored by Resistances 112 | 6 8 . 98 Core Remaining (%) 100 | 100 . . . Volleys Fired 74 | 5 5 1 63 Largest 2 | 2 2 2 2 Hottest 130 | 60 60 60 130 Shots Fired 116 | 10 7 2 97 Gun 76 | 10 7 2 57 Cannon . | . . . . Launcher 10 | . . . 10 Special 30 | . . . 30 Kinetic 60 | 5 5 1 49 Thermal 56 | 5 2 1 48 Explosive . | . . . . Electromagnetic . | . . . . Robot Hit Streak 16 | 9 13 2 16 Robot Miss Streak 2 | . 1 . 2 Penetration Max . | . . . . Secondary Targets 4 | . 1 . 3 Max Gunslinging Chain 1 | . 1 . 1 Shots Hit Robots 50 | 9 5 1 35 Core Hits 24 | 3 4 1 16 Critical Kills . | . . . . Critical Parts Destroyed . | . . . . Critical Strikes . | . . . . Melee Attacks . | . . . . Impact . | . . . . Slashing . | . . . . Piercing . | . . . . Sneak Attacks . | . . . . Combat Hostiles . | . . . . Follow-up Attacks . | . . . . Damage Inflicted 995 | 103 55 11 826 Guns 667 | 103 55 11 498 Cannons . | . . . . Explosions 328 | . . . 328 Melee . | . . . . Ramming . | . . . . Kinetic 691 | 50 33 . 608 Thermal 304 | 53 22 11 218 Explosive . | . . . . Electromagnetic . | . . . . Impact . | . . . . Slashing . | . . . . Piercing . | . . . . Highest Corruption 10 | . . . 10 Average Corruption 7 | . . . 7 Corruption Purged . | . . . . Corruption Blocked . | . . . . Effects 1 | . . . 1 Matter Fused 1 | . . . 1 Overload Shots . | . . . . Overflow Damage . | . . . . Projectiles . | . . . . Explosions . | . . . . Melee . | . . . . Knockbacks . | . . . . Impact . | . . . . Kinetic . | . . . . Secondary . | . . . . Self-Inflicted Damage 21 | . . . 21 Shots 1 | . . . 1 Rammed . | . . . . Targets Rammed . | . . . . Kicked . | . . . . Crushed . | . . . . Highest Temperature 18 | 18 . . . Average Temperature 14 | 14 . . . Received Heat Transfer 69 | 18 . . 51 Siege Activations . | . . . . Martial Activations . | . . . . Shielding Activations . | . . . . Robots Disrupted . | . . . . Combat Hostiles . | . . . . Robots Corrupted . | . . . . Combat Hostiles . | . . . . Parts Fried . | . . . . Impact Corruptions . | . . . . Robots Melted . | . . . . Combat Hostiles . | . . . . Parts Melted . | . . . . Heat Transferred 550 | 125 50 25 350 Parts Sabotaged . | . . . . Parts Stolen . | . . . . Parts Stripped . | . . . . Power Chain Reactions . | . . . . Alert | -11 -10 -10 -10 ------- Run | Yrd Mat Min Sub Maximum Alert Level . | . . . . Low Security (%) 100 | 100 100 100 . Level 1 . | . . . . Level 2 . | . . . . Level 3 . | . . . . Level 4 . | . . . . Level 5 . | . . . . High Security . | . . . . Max Security . | . . . . Peak Influence 71 | 20 71 21 . Initial 16 | . 11 16 . Average 11 | 2 35 4 . Influence Increases 174 | 25 70 5 74 Destroy 0b10 Robot/C 140 | 20 60 . 60 Destroy 0b10 Robot/NC 10 | 5 . 5 . Destroy Leader 20 | . 10 . 10 Allied During Kill 4 | . . . 4 Influence Decreases 174 | 5 39 56 74 Entered New Map 44 | . 9 35 . Time Decay 130 | 5 30 21 74 Squads Dispatched . | . . . . Investigation . | . . . . Extermination . | . . . . Reinforcement . | . . . . Assault . | . . . . Garrison . | . . . . Intercept . | . . . . Searches Triggered . | . . . . Construction Impeded . | . . . . Haulers Reinforced . | . . . . Active Scanning Responses . | . . . . Cargo Convoy Interrupts . | . . . . Stealth | -11 -10 -10 -10 --------- Run | Yrd Mat Min Sub Distress Signals . | . . . . Communications Jammed . | . . . . Distress Signals . | . . . . Times Spotted 25 | 1 4 . 20 Peak Tracking Total 4 | 1 3 . 4 Tactical Retreats . | . . . . Traps | -11 -10 -10 -10 ------- Run | Yrd Mat Min Sub Traps Triggered 2 | . . . 2 Indirectly . | . . . . Trap Hack Attempts . | . . . . Triggered . | . . . . Disarmed . | . . . . Reprogrammed . | . . . . Reused . | . . . . Traps Extracted . | . . . . Installed . | . . . . Triggered . | . . . . Machines | -11 -10 -10 -10 ---------- Run | Yrd Mat Min Sub Machines Disabled . | . . . . Max in Single Turn . | . . . . Machines Repaired . | . . . . Machines Dismantled . | . . . . Machines Sabotaged . | . . . . Overloaded Fab Kills . | . . . . Hacking | -11 -10 -10 -10 --------- Run | Yrd Mat Min Sub Machines Accessed 2 | . 1 . 1 Terminals 1 | . 1 . . Fabricators . | . . . . Repair Stations . | . . . . Recycling Units . | . . . . Scanalyzers . | . . . . Garrison Access . | . . . . Total Hacks 12 | . 3 . 9 Successful 12 | . 3 . 9 Failed . | . . . . Catastrophic . | . . . . Database Lockouts . | . . . . Manual . | . . . . Terminals 3 | . 3 . . Fabricators . | . . . . Repair Stations . | . . . . Recycling Units . | . . . . Scanalyzers . | . . . . Garrison Access . | . . . . Terminal Hacks 12 | . 3 . 9 Record 9 | . 1 . 8 Alert Level 2 | . 2 . . Proto ID Catalog 1 | . . . 1 Fabricator Hacks . | . . . . Repair Station Hacks . | . . . . Recycling Unit Hacks . | . . . . Scanalyzer . | . . . . Garrison Access Hacks . | . . . . Unauthorized Hacks . | . . . . Terminals . | . . . . Fabricators . | . . . . Repair Stations . | . . . . Recycling Units . | . . . . Scanalyzers . | . . . . Garrison Access . | . . . . Data Cores Recovered . | . . . . Used . | . . . . Hacking Detections 1 | . 1 . . Full Trace Events . | . . . . Feedback Events . | . . . . Feedback Blocked . | . . . . Robot Schematics Acquired . | . . . . Robots Built . | . . . . Authchips . | . . . . Time . | . . . . Total Robot Build Rating . | . . . . Part Schematics Acquired . | . . . . Parts Built . | . . . . Authchips . | . . . . Time . | . . . . Total Part Build Rating . | . . . . Parts Repaired . | . . . . Time . | . . . . Parts Recycled . | . . . . Recycled Matter . | . . . . Retrieved Matter . | . . . . Retrieved Components . | . . . . Parts Scanalyzed . | . . . . Part Schematics Acquired . | . . . . Parts Damaged . | . . . . Bothacking | -11 -10 -10 -10 ------------ Run | Yrd Mat Min Sub Used RIF Installer . | . . . . Robots Hacked . | . . . . Non-combat . | . . . . Combat . | . . . . Robot Hacks Applied . | . . . . Relay Couplers Released . | . . . . Fabnet Peak Effective % . | . . . . Robots Rewired . | . . . . Allies Hacked . | . . . . Hacks Repelled . | . . . . Allies | -11 -10 -10 -10 -------- Run | Yrd Mat Min Sub Total Allies 2 | . . 2 . Largest Group 2 | . . 2 2 Highest-Rated Group 42 | . . 42 42 Highest-Rated Ally 31 | . . 31 31 Total Orders . | . . . . Ally Attacks 15 | . . . 15 Total Damage 210 | . . . 210 Kills 3 | . . . 3 Allies Corrupted . | . . . . Allies Melted . | . . . . Intel | -11 -10 -10 -10 ------- Run | Yrd Mat Min Sub Active Infowar (turns) . | . . . . Robot Analysis Total . | . . . . Derelict Logs Recovered 2 | . . . 2 Drone Launches . | . . . . Drone Recoveries . | . . . . Exploration | -11 -10 -10 -10 ------------- Run | Yrd Mat Min Sub Turns Passed 4194 | 77 61 131 3925 Spaces Moved 2232 | 70 56 151 1955 Core 421 | 17 . . 404 Treads . | . . . . Legs . | . . . . Wheels 1811 | 53 56 151 1551 Hover . | . . . . Flight . | . . . . Fastest Speed 50 | 50 80 80 50 Average Speed 171 | 72 80 81 184 Slowest Speed 550 | 80 80 110 550 Overloaded Moves . | . . . . Propulsion Burnouts . | . . . . Robots Hopped . | . . . . Potential Cave-ins 38 | . . . 38 Cave-ins Triggered 3 | . . . 3 Exploration Rate (%) 23 | 8 23 26 36 Regions Visited 3 Branch Regions 2 Pre-discovered Areas 1 | . . . 1 Known Exits Taken . | . . . . Unknown Exits Taken 3 | 1 1 1 . Scrap Searched 6 | . . . 6 Spaces Dug 136 | . . . 136 Terrain Destroyed 168 | . . . 168 Melee . | . . . . Projectile 5 | . . . 5 AOE 163 | . . . 163 Terrain Rammed . | . . . . Walls Destroyed . | . . . . Machines Disabled . | . . . . Actions | -11 -10 -10 -10 --------- Run | Yrd Mat Min Sub Total 2430 | 85 65 156 2124 Wait 47 | . . . 47 Move 2226 | 69 55 150 1952 Hop . | . . . . Pick Up 28 | 6 2 2 18 Fast Attach . | . . . . Attach 15 | 5 2 2 6 Detach 2 | . . . 2 Swap 9 | . . . 9 Drop 19 | . 1 1 17 Fire 74 | 5 5 1 63 Melee . | . . . . Ram . | . . . . Kick . | . . . . Crush . | . . . . Escape Stasis 2 | . . . 2 Rewire . | . . . . Trap . | . . . . Miscellaneous 8 | . . . 8 Route ------- -11/Scrapyard -10/Materials -10/Mines -10/Subcaves History --------- Turn | Location | Event 2 | -11/Scrapyard | Met Revision 17 55 | -11/Scrapyard | Discovered new exit (range 8) 78 | -11/Scrapyard | Entered Materials 120 | -10/Materials | Discovered new exit (range 13) 139 | -10/Materials | Entered Mines 225 | -10/Mines | Discovered new exit (range 14) 270 | -10/Mines | Entered Subcaves 270 | -10/Subcaves | Accompanied by 2 allies 271 | -10/Subcaves | Approached by a straggling Scientist 275 | -10/Subcaves | Led the pair of lost Derelicts to an unsafe place 301 | -10/Subcaves | Build established: Mutant 354 | -10/Subcaves | Ambushed by swarm of Subdwellers 566 | -10/Subcaves | Learned 4 Materials zone layouts 628 | -10/Subcaves | Build established: Subdweller-Mutant 800 | -10/Subcaves | A Subdweller sparked back to life 800 | -10/Subcaves | A Subdweller sparked back to life 800 | -10/Subcaves | A Subdweller sparked back to life 3295 | -10/Subcaves | Learned location of Storage (-8) 3576 | -10/Subcaves | Visited 4L-MR0's lab 4057 | -10/Subcaves | Ambushed by Subdweller buried in earth 4057 | -10/Subcaves | Ambushed by Subdweller buried in earth 4172 | -10/Subcaves | Crushed by falling debris 4173 | -10/Subcaves | Core integrity fell below 50% 4193 | -10/Subcaves | Crushed by falling debris 4194 | -10/Subcaves | Core integrity fell below 20% 4194 | -10/Subcaves | System corruption reached 10% 4195 | -10/Subcaves | Crushed by falling debris 4195 | -10/Subcaves | Smashed by cave-in Last Messages --------------- System corrupted by crushing effect (+3). Lgt. Ion Engine destroyed. System corrupted by crushing effect (+4). Dropped Sub. Machine Gun. The unstable cave ceiling collapses. EZ-ZUD(g) crushed by falling debris. The unstable cave ceiling collapses. 7E-NQJ(z) crushed by falling debris. 7E-NQJ(z) destroyed. System corrupted: Matter fused (-8). The unstable cave ceiling collapses. Crushed by falling debris. Sub. Monowheel destroyed. System corrupted by crushing effect (+2). Wheel destroyed. Scrap Shield destroyed. System corrupted by crushing effect (+1). [Achievement: System Compromised] The unstable cave ceiling collapses. Crushed by falling debris. Map ----- +----------------------------------------------------+ | ???????????????### & ## ##?????????????? | | ??????????????## #"###""= # ## #??????????????? | | ??????????????# ### #######??????????????? | | ???????????#### ## #?????????????????? | | ???????????#" ##" #" #?????????????????? | | ???????????#&# &! # #?????????????????? | | ???????????# ##"#] #" #?????????????????? | | ???????????# [### ! ! #?????????????????? | | ???????????#"%## [ #?????????????????? | | ???????????####### " #?????????????????? | | ?????????????????### " # # #?????????????????? | | ???????????????????### #?????????????????? | | ?????????????????????## # ##?????????????????? | | ??????????????????????# #??????????????????? | | ??????????????????????# #??????????????????? | | ??????????????????????# #??????????????????? | | ??????????????????????# # #??????????????????? | | ??????????????????????# # # #??????????????????? | | ??????????????????????# ## #??????????????????? | | ?????????????????????## #??????????????????? | | ?????????????????????# #??????????????????? | | ?????????????????????# #??????????????????? | | ?????????????????????# #??????????????????? | | ?????????????????????# ##??????????????????? | | ?????????????????????## ##???????????????????? | | ??????????????????????# @ #????????????????????? | | ??????????????????????# # #????????????????????? | | ??????????????????????#######????????????????????? | | ?????????????????????????????????????????????????? | | ?????????????????????????????????????????????????? | | ?????????????????????????????????????????????????? | | ?????????????????????????????????????????????????? | | ?????????????????????????????????????????????????? | | ?????????????????????????????????????????????????? | | ?????????????????????????????????????????????????? | | ?????????????????????????????????????????????????? | | ?????????????????????????????????????????????????? | | ?????????????????????????????????????????????????? | | ?????????????????????????????????????????????????? | | ?????????????????????????????????????????????????? | | ?????????????????????????????????????????????????? | | ?????????????????????????????????????????????????? | | ?????????????????????????????????????????????????? | | ?????????????????????????????????????????????????? | | ?????????????????????????????????????????????????? | | ?????????????????????????????????????????????????? | | ?????????????????????????????????????????????????? | | ?????????????????????????????????????????????????? | | ?????????????????????????????????????????????????? | | ?????????????????????????????????????????????????? | +----------------------------------------------------+ Best States ------------- Heat Dissipation 25 Energy Generation 15 Energy Capacity 200 Matter Stores 300 Matter Capacity 300 Sight Range 16 Terrain Scan Density 10 Armor Coverage 800 Resistance: KI 20 Resistance: TH 20 Resistance: EX 20 Resistance: EM 20 Resistance: I 20 Resistance: S 20 Resistance: P 20 Core Shielding 20 Evasion (%) 50 Offensive Hacking 10 Item Schematics ----------------- None Robot Schematics ------------------ None Fabricated ------------ Nothing Repaired ---------- Nothing Alien Tech Used ----------------- None Achievements -------------- System Compromised Unlikely Earthworm Challenges ------------ None Game ------ Seed TachyonUltimateLauncher Manual? 0 Play Time 00:53:41 Cumulative 2.0 hours Start 2025.10.05 @ 09:39:07 End 2025.10.05 @ 10:39:36 Sessions 1 Manual Loads 0 Difficulty Adventurer Special Mode None Game No. 2 Rogue 0 Adventurer 2 Explorer 0 Win Type - Total 0 Types 0/0/0/0/0/0/0/0/0/0 Lore% 0 Gallery% 4 Achievement% 4 Wizard Run 0 Options --------- Layout 1 ASCII 0 Keyboard 0 Movement Mouse Keybinds 0 Fullscreen 1 Font 16/SmallcapsGlow Map View 50x40 Zoom Use 0% Tactical HUD 0 Map Filters NONE Filters NONE Steam SD RUN: 7166d400-ba1e-40ec-93fc-b4425ebb916b